bitfinex-derivatives/quotes_SOLF0:USTF0_20250712
["timestamp","ask_amount","ask_price","bid_price","bid_amount"]
[1752359744809,3.64,160.35,160.34,3.34]
[1752359745010,5.17335425,160.35,160.34,3.34]
[1752359746514,3.64,160.35,160.34,9.5746]
[1752359750120,3.64,160.35,160.34,3.34]
[1752359750317,5.17335425,160.35,160.34,3.34]
[1752359751823,3.64,160.35,160.34,3.34]
[1752359752822,3.64,160.35,160.34,9.5746]
[1752359754224,3.64,160.35,160.34,3.34]
[1752359754728,3.64,160.35,160.34,9.5746]
[1752359755630,3.64,160.35,160.34,3.34]
[1752359761728,3.64,160.35,160.34,9.5746]
[1752359763231,3.64,160.35,160.34,3.34]
[1752359764436,3.64,160.35,160.34,9.5746]
[1752359768432,0.04098733,160.37,160.36,6.2338]
[1752359768636,0.04098733,160.37,160.36,16.47012725]
[1752359768835,0.04098733,160.37,160.36,14.936773]
[1752359769736,0.04098733,160.37,160.36,9.6938]
[1752359769937,1.53335425,160.39,160.37,3.46]
[1752359770137,1.53335425,160.39,160.38,6.84237374]
[1752359770439,4.83335425,160.39,160.38,10.30237374]
[1752359771335,4.83335425,160.39,160.38,9.95417433]
[1752359771941,1.53335425,160.39,160.38,3.46]
[1752359772943,4.83335425,160.39,160.38,3.46]
[1752359787641,3.3,160.38,160.37,3.49970295]
[1752359787843,4.83335425,160.38,160.37,3.49970295]
[1752359788344,4.83335425,160.38,160.37,0.03970295]
[1752359788552,3.3,160.37,160.35,3.46]
[1752359788743,4.83335425,160.36,160.35,3.46]
[1752359804861,4.83335425,160.36,160.32,5.24104815]
[1752359805063,5.00335425,160.35,160.34,3.57]
[1752359806968,5.00335425,160.36,160.34,3.57]
[1752359808160,1.53335425,160.36,160.34,3.57]
[1752359809471,0.04237674,160.37,160.34,3.57]
[1752359809964,0.04237674,160.37,160.34,10.3444024]
[1752359810168,0.04237674,160.37,160.36,3.57]
[1752359810667,5.00335425,160.4,160.36,3.57]
[1752359810863,0.04038912,160.38,160.36,3.57]
[1752359811371,0.04038912,160.38,160.36,9.8038]
[1752359811765,0.04038912,160.38,160.37,3.57]
[1752359811962,0.04038912,160.38,160.37,5.10335425]
[1752359813067,0.04038912,160.38,160.37,11.33675425]
[1752359822083,0.04038912,160.38,160.37,10.33707432]
[1752359822479,0.04038912,160.38,160.37,5.10335425]
[1752359822778,0.04038912,160.38,160.37,11.33675425]
[1752359823379,0.04038912,160.38,160.37,16.5691789]
[1752359827281,0.04038912,160.38,160.37,11.33675425]
[1752359827777,3.66,160.44,160.37,1.53335425]
[1752359827985,3.66,160.44,160.42,3.42]
[1752359828784,178.96,160.46,160.43,1.53335425]
[1752359829087,542.3,160.48,160.46,3.42]
[1752359829384,3.66,160.47,160.46,3.42]
[1752359835685,182.84,160.47,160.46,3.42]
[1752359837789,3.66,160.46,160.44,3.42]
[1752359839091,3.66,160.46,160.44,4.95335425]
[1752359839586,3.66,160.46,160.44,1.53335425]
[1752359839790,3.66,160.46,160.45,3.42]
[1752359843490,3.66,160.46,160.44,1.53335425]
[1752359843691,5.19335425,160.45,160.44,3.42]
[1752359843891,1.53335425,160.45,160.43,0.03996392]
[1752359844085,184.33335425,160.44,160.43,0.03996392]
[1752359846900,5.19335425,160.42,160.4,3.42]
[1752359847102,184.31335425,160.41,160.4,3.42]
[1752359862408,3.55,160.4,160.39,3.59]
[1752359866608,5.08335425,160.4,160.39,3.59]
[1752359870717,3.55,160.4,160.39,3.59]
[1752359870917,5.08335425,160.4,160.39,3.59]
[1752359872719,3.55,160.4,160.39,3.59]
[1752359873115,5.08335425,160.4,160.39,3.59]
[1752359873316,3.55,160.39,160.37,3.59]
[1752359873517,179.16119658,160.41,160.36,3.59]
[1752359873518,3.55,160.37,160.36,3.59]
[1752359873715,5.08335425,160.37,160.36,3.59]
[1752359878624,3.55,160.36,160.34,3.59]
[1752359878922,1.53335425,160.36,160.34,3.59]
[1752359879123,3.55,160.35,160.34,3.59]
[1752359881030,3.55,160.35,160.34,9.8246]
[1752359881330,5.08335425,160.36,160.34,9.8246]
[1752359881529,5.08335425,160.36,160.35,3.59]
[1752359882531,5.08335425,160.37,160.35,9.8242]
[1752359882829,3.5901814,160.37,160.36,3.59]
[1752359883022,0.0401814,160.37,160.36,3.59]
[1752359883227,3.5901814,160.37,160.36,3.59]
[1752359883730,5.12353565,160.37,160.36,3.59]
[1752359887333,1.57353565,160.37,160.36,3.59]
[1752359887631,0.0401814,160.37,160.36,3.59]
[1752359887833,0.0401814,160.37,160.36,11.27715425]
[1752359890335,0.0401814,160.37,160.36,16.51235241]
[1752359895844,0.0401814,160.37,160.36,16.51136092]
[1752359898745,3.4201814,160.37,160.36,3.51]
[1752359902640,3.4201814,160.37,160.35,5.23519816]
[1752359902842,3.38,160.36,160.35,3.51]
[1752359906348,3.38,160.36,160.35,8.74519816]
[1752359908849,3.38,160.36,160.35,3.51]
[1752359909749,3.38,160.36,160.34,3.51]
[1752359910547,4.91236276,160.36,160.34,3.51]
[1752359912951,1.57339755,160.37,160.35,3.51]
[1752359913452,1.57339755,160.37,160.35,9.7442]
[1752359913644,4.95339755,160.37,160.36,3.51]
[1752359913846,3.4201814,160.37,160.36,3.51]
[1752359914349,0.0401814,160.37,160.36,3.51]
[1752359914852,0.0401814,160.37,160.36,6.2338]
[1752359915048,0.0401814,160.37,160.36,9.7438]
[1752359917552,3.6401814,160.37,160.36,3.51]
[1752359920259,3.6401814,160.37,160.36,3.56]
[1752359921456,3.6401814,160.37,160.35,8.80802752]
[1752359922252,5.13321615,160.36,160.35,8.80802752]
[1752359922856,5.13321615,160.36,160.35,3.56]
[1752359923157,3.6,160.35,160.34,8.80802752]
[1752359923458,5.13321615,160.35,160.34,8.80802752]
[1752359923656,5.13321615,160.35,160.34,5.24802752]
[1752359924657,5.13321615,160.35,160.34,3.56]
[1752359924856,3.6,160.33,160.32,5.24802752]
[1752359925057,5.13321615,160.33,160.32,5.24802752]
[1752359925457,5.13321615,160.33,160.32,8.80802752]
[1752359925659,11.36821615,160.33,160.32,3.56]
[1752359928355,6.2357,160.32,160.31,3.56]
[1752359928557,11.36891615,160.32,160.31,3.56]
[1752359929259,3.6,160.31,160.29,8.80802752]
[1752359929455,3.64128619,160.33,160.29,5.24802752]
[1752359929649,11.40970234,160.33,160.3,3.56]
[1752359929856,11.40970234,160.33,160.31,3.56]
[1752359931262,9.8354,160.32,160.31,3.56]
[1752359931558,11.36861615,160.32,160.31,3.56]
[1752359932260,5.13321615,160.32,160.31,3.56]
[1752359935661,1.57450234,160.33,160.32,3.56]
[1752359936356,11.40950234,160.33,160.32,3.56]
[1752359939464,7.80950234,160.33,160.32,3.56]
[1752359939653,1.57450234,160.33,160.32,3.56]
[1752359939860,0.04128619,160.33,160.32,3.56]
[1752359940662,0.04128619,160.33,160.32,9.7954]
[1752359944972,0.04128619,160.33,160.32,3.56]
[1752359946170,6.27628619,160.33,160.32,3.56]
[1752359946370,3.6,160.31,160.3,3.53]
[1752359946673,5.13321615,160.31,160.3,3.53]
[1752359946877,5.13416201,160.31,160.3,3.53]
[1752359947171,11.36996201,160.31,160.3,3.53]
[1752359948872,9.8358,160.31,160.3,3.53]
[1752359949577,9.8358,160.31,160.3,5.24802752]
[1752359949767,9.8358,160.31,160.3,8.77802752]
[1752359951073,9.8358,160.31,160.3,3.53]
[1752359961776,6.2358,160.31,160.3,3.53]
[1752359967180,0.04128619,160.33,160.28,3.53]
[1752359967577,0.04128619,160.33,160.3,8.77802752]
[1752359967878,0.04128619,160.33,160.32,3.53]
[1752359970684,0.04128619,160.33,160.32,9.7654]
[1752359970988,3.6,160.32,160.31,3.53]
[1752359971283,5.13359586,160.32,160.31,3.53]
[1752359972286,11.36899586,160.32,160.31,3.53]
[1752359977286,180.61488205,160.33,160.31,3.53]
[1752359977582,184.22488205,160.33,160.31,3.53]
[1752359977885,180.61488205,160.33,160.31,3.53]
[1752359978482,180.61488205,160.33,160.31,9.7657]
[1752359978787,186.84988205,160.33,160.32,3.54]
[1752359980489,186.84998322,160.33,160.32,3.54]
[1752359980885,7.80998322,160.33,160.32,3.54]
[1752359981083,11.41998322,160.33,160.32,3.54]
[1752359982389,6.236,160.31,160.29,5.2479357]
[1752359982592,11.37969703,160.31,160.3,3.54]
[1752359984794,9.846,160.31,160.3,3.54]
[1752359988494,6.236,160.31,160.3,3.54]
[1752359989998,2.39728308,160.32,160.3,3.54]
[1752359990201,6.00728308,160.32,160.3,3.54]
[1752359990596,179.06128619,160.33,160.3,3.54]
[1752359990904,3.61,160.32,160.31,3.54]
[1752359992701,9.88648619,160.33,160.31,3.54]
[1752359992904,3.65128619,160.33,160.31,3.54]
[1752359993096,3.65128619,160.33,160.31,6.2355]
[1752359993291,3.65128619,160.33,160.32,3.54]
[1752359993495,0.04128619,160.33,160.32,3.54]
[1752359993701,0.04128619,160.33,160.32,9.7754]
[1752359994092,0.04128619,160.33,160.32,15.0233357]
[1752360003814,182.63,160.37,160.35,6.234]
[1752360004019,182.63,160.37,160.36,3.54]
[1752360004616,182.63,160.37,160.36,9.7738]
[1752360004921,184.16286549,160.37,160.36,3.54]
[1752360006325,190.39626549,160.37,160.36,3.54]
[1752360006824,188.8634,160.37,160.36,3.54]
[1752360009825,6.2338,160.36,160.35,3.42046061]
[1752360010027,9.5338,160.36,160.35,3.42046061]
[1752360025740,11.92913688,160.36,160.35,0.04046061]
[1752360026939,11.06734917,160.36,160.35,0.04046061]
[1752360028841,9.5338,160.36,160.35,0.04046061]
[1752360029045,11.06734917,160.36,160.35,0.04046061]
[1752360030939,11.06732713,160.36,160.35,0.04046061]
[1752360031138,11.06732713,160.36,160.35,3.42046061]
[1752360036740,11.06725625,160.36,160.35,3.42046061]
[1752360047256,11.067208,160.36,160.35,3.42046061]
[1752360048050,8.57489372,160.39,160.35,3.42046061]
[1752360048250,1.533408,160.37,160.35,3.42046061]
[1752360049061,6.2338,160.36,160.35,3.42046061]
[1752360053068,180.4729686,160.38,160.36,3.52]
[1752360053361,178.94,160.38,160.36,3.52]
[1752360054060,185.1733,160.38,160.36,3.52]
[1752360054454,185.1733,160.38,160.36,9.7537]
[1752360054660,178.94,160.38,160.36,3.52]
[1752360054962,178.94,160.38,160.37,3.52]
[1752360055762,185.173,160.38,160.37,3.52]
[1752360056968,588.0,160.56,160.38,3.52]
[1752360056969,3.33,160.46,160.38,3.52]
[1752360057162,1.5320679,160.45,160.42,3.52]
[1752360057367,3.33,160.43,160.42,3.52]
[1752360058263,182.97,160.44,160.42,3.52]
[1752360058467,179.64,160.44,160.42,3.52]
[1752360058667,182.97,160.44,160.42,3.52]
[1752360059661,3.33,160.43,160.42,3.52]
[1752360059864,3.33,160.43,160.42,10.17692285]
[1752360060364,4.86142279,160.43,160.42,10.17692285]
[1752360060567,3.33,160.42,160.37,5.24240873]
[1752360060870,3.33,160.39,160.36,13.00743152]
[1752360061066,3.33,160.39,160.36,6.77383152]
[1752360062566,3.33,160.39,160.37,3.52]
[1752360062767,3.33,160.39,160.37,5.05142279]
[1752360063171,3.33,160.39,160.38,3.52]
[1752360069974,3.64956308,160.4,160.38,5.05142279]
[1752360070278,0.03956308,160.4,160.39,11.18412279]
[1752360072679,0.03956308,160.4,160.39,17.70002002]
[1752360082285,0.03956308,160.4,160.39,11.46732002]
[1752360082783,3.64956308,160.4,160.39,11.46732002]
[1752360082982,3.64956308,160.4,160.39,17.70002002]
[1752360083580,0.03956308,160.4,160.39,17.70002002]
[1752360085087,3.64956308,160.4,160.39,17.70002002]
[1752360086589,0.03956308,160.4,160.39,17.70002002]
[1752360090693,3.64956308,160.4,160.39,17.70002002]
[1752360092499,0.03956308,160.4,160.39,17.73100231]
[1752360094000,0.03956308,160.4,160.39,17.73296038]
[1752360094501,3.64956308,160.4,160.39,17.73296038]
[1752360096298,3.64956308,160.4,160.39,22.96437674]
[1752360096902,3.64956308,160.4,160.39,17.73296038]
[1752360097204,3.64956308,160.4,160.39,22.9775776]
[1752360097400,1.53142279,160.43,160.4,6.2322]
[1752360097704,1.53142279,160.43,160.42,3.34]
[1752360097905,1.53142279,160.43,160.42,9.88883759]
[1752360099509,4.83142279,160.43,160.42,9.88883759]
[1752360101714,3.3,160.43,160.42,9.88883759]
[1752360102603,3.3,160.43,160.42,6.54883759]
[1752360102810,4.83226135,160.43,160.42,6.54883759]
[1752360104108,4.83243223,160.43,160.42,6.54883759]
[1752360116319,3.3,160.42,160.4,3.34]
[1752360116521,4.83243223,160.41,160.4,3.34]
[1752360116721,4.83243223,160.41,160.4,9.82617599]
[1752360119226,4.83243223,160.41,160.4,9.82553118]
[1752360129735,4.83243223,160.41,160.4,3.34]
[1752360129936,4.83243223,160.41,160.4,9.82071871]
[1752360130232,4.83243223,160.41,160.4,3.34]
[1752360130532,4.83243223,160.41,160.4,9.82085153]
[1752360138241,4.83243223,160.41,160.4,9.82271729]
[1752360145448,4.83238534,160.41,160.4,9.82271729]
[1752360145845,4.83238534,160.41,160.4,9.82774744]
[1752360147449,4.83238534,160.41,160.4,6.48774744]
[1752360148146,4.8328566,160.41,160.4,6.48774744]
[1752360149950,4.8328566,160.41,160.4,10.08774744]
[1752360150446,183.7728566,160.41,160.4,10.08774744]
[1752360160861,1.5328566,160.42,160.41,3.59]
[1752360161061,178.96,160.42,160.41,10.07774744]
[1752360161559,178.96,160.42,160.41,10.07973349]
[1752360163356,178.96,160.42,160.41,3.59]
[1752360163562,183.9728566,160.42,160.41,3.59]
[1752360170668,183.9728566,160.42,160.41,10.09581095]
[1752360175867,178.96,160.42,160.41,10.09581095]
[1752360176770,178.96,160.42,160.41,3.59]
[1752360181464,178.96,160.42,160.41,9.8219]
[1752360181867,178.96,160.42,160.41,3.59]
[1752360183568,182.44,160.42,160.41,3.59]
[1752360189672,183.9728566,160.42,160.39,5.24461722]
[1752360189862,5.0128566,160.41,160.4,3.5]
[1752360191868,180.4928566,160.42,160.4,3.5]
[1752360192174,182.44,160.42,160.4,3.5]
[1752360192372,3.48,160.41,160.4,3.5]
[1752360197475,180.4928566,160.42,160.4,3.5]
[1752360197677,183.9728566,160.42,160.4,3.5]
[1752360199180,182.44,160.42,160.4,3.5]
[1752360200379,178.96,160.42,160.4,3.5]
[1752360200579,3.48,160.41,160.4,3.5]
[1752360205388,3.48,160.41,160.39,3.5]
[1752360209887,180.4928566,160.42,160.39,3.5]
[1752360210186,183.9728566,160.42,160.39,3.5]
[1752360210588,3.48,160.41,160.39,3.5]
[1752360212889,3.48,160.4,160.39,3.5]
[1752360218598,3.48,160.4,160.32,14.10707752]
[1752360218895,3.5,160.35,160.34,10.60471834]
[1752360219494,5.03349993,160.35,160.34,10.60471834]
[1752360221006,5.03349993,160.35,160.34,8.85346692]
[1752360221498,3.5,160.34,160.33,5.25346692]
[1752360221699,5.03349993,160.34,160.33,5.25346692]
[1752360222493,1.53349993,160.34,160.32,8.85346692]
[1752360222800,5.03349993,160.33,160.32,8.85346692]
[1752360223400,5.03349993,160.33,160.32,3.6]
[1752360224397,3.5,160.35,160.32,3.6]
[1752360224600,5.03349993,160.35,160.32,3.6]
[1752360226198,5.03349993,160.35,160.33,3.6]
[1752360226900,1.57591279,160.36,160.33,9.8349]
[1752360227202,0.04241286,160.36,160.34,3.6]
[1752360227501,3.5,160.35,160.34,3.6]
[1752360229709,5.03349993,160.35,160.34,3.6]
[1752360229902,3.5,160.33,160.32,3.6]
[1752360230202,5.03349993,160.34,160.32,3.6]
[1752360231403,3.5,160.34,160.32,6.2354]
[1752360231609,1.53349993,160.35,160.33,3.6]
[1752360231902,1.53349993,160.35,160.34,3.6]
[1752360232099,5.03349993,160.35,160.34,3.6]
[1752360239103,3.5,160.34,160.31,3.6]
[1752360239316,5.03349993,160.34,160.31,3.6]
[1752360239808,3.5,160.33,160.31,3.6]
[1752360240610,6.2353,160.33,160.31,3.6]
[1752360240808,3.5,160.32,160.31,3.6]
[1752360241813,9.7354,160.32,160.31,3.6]
[1752360242714,6.2354,160.32,160.31,3.6]
[1752360242916,9.7354,160.32,160.31,3.6]
[1752360244314,3.5,160.33,160.31,3.6]
[1752360245114,9.7354,160.32,160.31,3.6]
[1752360246514,9.8852,160.33,160.31,3.6]
[1752360246714,3.65,160.33,160.31,3.6]
[1752360247008,6.2348,160.34,160.32,3.47]
[1752360248115,5.18349993,160.35,160.32,3.47]
[1752360248415,5.18349993,160.35,160.32,9.7051]
[1752360248615,5.18349993,160.35,160.33,3.47]
[1752360249214,3.65,160.35,160.33,3.47]
[1752360250213,3.65,160.35,160.33,6.235]
[1752360250410,3.69241286,160.36,160.34,3.47]
[1752360250710,0.04241286,160.36,160.34,9.7044]
[1752360250915,0.04241286,160.36,160.3,5.25346692]
[1752360250916,0.04241286,160.36,160.35,5.00349993]
[1752360251316,0.04241286,160.36,160.35,11.23769993]
[1752360252314,0.04241286,160.36,160.35,5.00349993]
[1752360257317,0.04241286,160.36,160.35,3.47]
[1752360258117,0.04241286,160.36,160.35,11.23769993]
[1752360268022,0.04241286,160.36,160.35,16.49116685]
[1752360274227,3.69241286,160.36,160.35,5.00349993]
[1752360275632,0.04241286,160.36,160.35,11.23769993]
[1752360276532,3.63,160.39,160.37,6.2333]
[1752360276831,3.63,160.39,160.38,3.33]
[1752360278029,3.63,160.39,160.37,3.33]
[1752360278235,3.63,160.39,160.37,3.37225654]
[1752360280036,3.63,160.39,160.37,4.90575647]
[1752360280334,3.63,160.39,160.38,3.33]
[1752360286948,3.63,160.39,160.37,0.04225654]
[1752360287148,3.63,160.39,160.37,3.37225654]
[1752360288751,3.63,160.39,160.37,0.04225654]
[1752360288947,5.16349993,160.39,160.37,0.04225654]
[1752360289146,1.53349993,160.38,160.37,0.04225654]
[1752360289346,5.16349993,160.38,160.37,0.04225654]
[1752360300657,3.63,160.38,160.37,3.37225654]
[1752360300953,3.63,160.41,160.38,3.33]
[1752360301257,3.63,160.41,160.39,3.33]
[1752360301852,3.63,160.41,160.39,4.86349993]
[1752360302056,3.63,160.41,160.4,3.33]
[1752360302854,5.16349993,160.41,160.4,3.33]
[1752360304253,1.53349993,160.41,160.39,3.33]
[1752360304556,3.63,160.4,160.39,3.33]
[1752360304959,5.16349993,160.4,160.39,3.33]
[1752360305951,3.63,160.4,160.39,3.33]
[1752360316569,3.51,160.39,160.38,3.3]
[1752360316757,180.33349993,160.39,160.37,3.34225654]
[1752360316961,5.04349993,160.38,160.37,3.34225654]
[1752360319563,5.04349993,160.38,160.37,0.04225654]
[1752360321468,5.04349993,160.38,160.37,3.34225654]
[1752360323872,3.51,160.38,160.37,3.34225654]
[1752360324170,178.8,160.39,160.37,3.34225654]
[1752360324761,182.31,160.39,160.37,3.34225654]
[1752360325864,180.33349993,160.39,160.37,3.34225654]
[1752360326072,3.51,160.38,160.37,3.34225654]
[1752360328273,5.04349993,160.39,160.37,3.34225654]
[1752360328473,3.51,160.39,160.37,3.34225654]
[1752360331975,1.53349993,160.4,160.37,3.34225654]
[1752360332177,3.51,160.38,160.37,3.34225654]
[1752360332775,1.53349993,160.4,160.37,3.34225654]
[1752360332971,3.51,160.41,160.38,4.83349993]
[1752360333176,3.51,160.41,160.39,3.3]
[1752360336477,180.31212644,160.43,160.39,3.3]
[1752360336677,3.59,160.4,160.39,3.3]
[1752360345484,3.59,160.4,160.37,0.04225654]
[1752360345685,5.12212644,160.39,160.38,3.49]
[1752360345980,183.88212644,160.39,160.38,3.49]
[1752360348182,183.88212644,160.39,160.37,0.04225654]
[1752360348384,3.59,160.38,160.35,5.24677872]
[1752360348587,3.59,160.35,160.34,8.73677872]
[1752360348786,5.12334065,160.36,160.34,8.73677872]
[1752360348983,5.12334065,160.36,160.35,3.49]
[1752360351487,3.59,160.35,160.33,3.49]
[1752360351685,3.59,160.33,160.32,8.73677872]
[1752360351891,5.12334065,160.33,160.32,8.73677872]
[1752360352190,5.12334065,160.33,160.32,3.49]
[1752360353089,11.35834065,160.33,160.32,3.49]
[1752360353781,6.235,160.33,160.32,3.49]
[1752360357194,3.59,160.36,160.33,3.49]
[1752360357391,3.59,160.36,160.33,5.02334065]
[1752360357594,3.59,160.36,160.34,3.49]
[1752360358094,183.94462474,160.37,160.34,3.49]
[1752360358491,182.41128409,160.37,160.34,3.49]
[1752360358996,182.41128409,160.37,160.34,5.02334065]
[1752360359190,182.41128409,160.37,160.34,1.53334065]
[1752360359396,182.41128409,160.37,160.35,3.49]
[1752360359790,183.94462474,160.37,160.35,3.49]
[1752360359996,3.59,160.36,160.35,3.49]
[1752360365200,3.59,160.36,160.32,3.49]
[1752360369398,3.43,160.34,160.32,3.49]
[1752360369592,3.43,160.34,160.29,5.24677872]
[1752360369903,3.43,160.34,160.32,3.39]
[1752360370302,6.235,160.33,160.32,3.39]
[1752360370503,9.665,160.33,160.32,3.39]
[1752360374702,3.43,160.32,160.29,3.39]
[1752360374908,2.39544847,160.31,160.29,3.39]
[1752360375207,3.43,160.3,160.29,3.39]
[1752360376210,3.43,160.3,160.27,3.39]
[1752360376807,9.6672,160.28,160.27,3.39]
[1752360377105,6.2372,160.28,160.27,3.39]
[1752360378404,9.6672,160.28,160.27,3.39]
[1752360381715,9.6678,160.26,160.25,3.39]
[1752360382715,6.2378,160.26,160.25,3.39]
[1752360383817,11.20281225,160.26,160.25,3.39]
[1752360384821,9.6678,160.26,160.25,3.39]
[1752360385519,6.2375,160.27,160.25,3.39]
[1752360385820,3.43,160.28,160.25,3.39]
[1752360386326,6.2376,160.27,160.25,3.39]
[1752360388321,6.2376,160.27,160.25,9.6281]
[1752360388519,6.2376,160.27,160.26,3.39]
[1752360389721,9.70793905,160.29,160.28,3.39]
[1752360390125,9.6666,160.29,160.28,3.39]
[1752360402437,2.39894128,160.29,160.23,6.2387]
[1752360402633,3.38,160.28,160.25,3.32]
[1752360402836,3.38,160.28,160.26,3.32]
[1752360403636,9.6174,160.27,160.26,3.32]
[1752360403935,12.01634128,160.27,160.26,3.32]
[1752360406937,11.15258158,160.27,160.26,3.32]
[1752360407835,6.2374,160.27,160.26,3.32]
[1752360408430,7.77228158,160.28,160.26,3.32]
[1752360408635,0.04168277,160.29,160.26,3.32]
[1752360408827,6.27858277,160.29,160.26,11.09278158]
[1752360409032,6.27858277,160.29,160.27,3.32]
[1752360409344,0.04168277,160.29,160.27,3.32]
[1752360409635,3.42168277,160.29,160.27,3.32]
[1752360415738,0.04168277,160.29,160.27,3.32]
[1752360417040,0.04168277,160.29,160.27,9.5573]
[1752360417239,0.04168277,160.29,160.28,3.32]
[1752360420444,3.42168277,160.29,160.28,3.32]
[1752360426340,3.42168277,160.29,160.27,3.63]
[1752360427452,5.819898,160.29,160.27,3.63]
[1752360428148,3.43,160.28,160.25,3.63]
[1752360428348,3.43,160.26,160.25,3.63]
[1752360432558,3.43,160.26,160.24,5.24677872]
[1752360432754,3.43,160.26,160.24,8.87677872]
[1752360432959,4.9653753,160.25,160.24,8.87677872]
[1752360433157,3.43,160.25,160.24,8.87677872]
[1752360433358,11.2034753,160.25,160.24,8.87677872]
[1752360433559,11.2034753,160.25,160.24,3.63]
[1752360434158,11.20340329,160.25,160.24,3.63]
[1752360434348,7.77340329,160.25,160.24,3.63]
[1752360435560,11.20340329,160.25,160.24,3.63]
[1752360435863,9.6681,160.25,160.24,3.63]
[1752360440067,11.20340329,160.25,160.24,3.63]
[1752360444160,11.20340329,160.25,160.21,5.24677872]
[1752360444161,6.2393,160.23,160.21,5.24677872]
[1752360444769,6.2393,160.23,160.22,3.63]
[1752360450576,9.6693,160.23,160.22,3.63]
[1752360451370,6.27813809,160.24,160.22,9.8693]
[1752360451677,0.03943809,160.24,160.23,3.63]
[1752360454683,0.03943809,160.24,160.23,9.8689]
[1752360457672,5.03530329,160.29,160.23,6.78208201]
[1752360457873,5.03530329,160.29,160.27,3.51]
[1752360460085,5.03530329,160.29,160.27,9.7473]
[1752360460282,5.03530329,160.29,160.28,3.51]
[1752360466504,3.5,160.28,160.27,3.51]
[1752360466693,5.03530329,160.28,160.27,3.51]
[1752360467894,5.03530329,160.28,160.25,3.51]
[1752360468092,5.03530329,160.26,160.24,3.51]
[1752360468292,183.87530329,160.25,160.24,3.51]
[1752360469196,180.37530329,160.25,160.24,3.51]
[1752360469996,183.87530329,160.25,160.24,3.51]
[1752360471194,183.87530329,160.25,160.24,8.75677872]
[1752360471395,183.87530329,160.25,160.24,3.51]
[1752360471598,3.5,160.24,160.23,3.51]
[1752360471892,5.03530329,160.24,160.23,3.51]
[1752360473096,11.27380329,160.24,160.23,3.51]
[1752360475402,6.2393,160.22,160.21,8.75677872]
[1752360475595,9.7393,160.22,160.21,8.75677872]
[1752360475896,11.27460329,160.22,160.21,8.75677872]
[1752360476096,11.27460329,160.22,160.21,3.51]
[1752360481300,3.5,160.2,160.19,3.51]
[1752360481700,11.27540329,160.2,160.19,3.51]
[1752360484600,9.7408,160.18,160.17,3.51]
[1752360484799,11.27610329,160.18,160.17,3.51]
[1752360485902,9.7408,160.18,160.17,3.51]
[1752360487708,3.5,160.18,160.17,3.51]
[1752360488405,9.7408,160.18,160.17,3.51]
[1752360490006,3.44,160.17,160.15,3.54]
[1752360490199,4.97530329,160.16,160.15,3.54]
[1752360491200,11.21690329,160.16,160.15,3.54]
[1752360491802,4.97530329,160.16,160.15,3.54]
[1752360493910,3.44,160.18,160.15,3.54]
[1752360494111,1.53530329,160.18,160.15,3.54]
[1752360494498,1.53530329,160.18,160.16,6.2414]
[1752360494701,1.53530329,160.18,160.17,3.54]
[1752360495008,11.21600329,160.19,160.17,3.54]
[1752360495303,11.21600329,160.19,160.18,3.54]
[1752360496905,9.6807,160.19,160.18,3.54]
[1752360498411,3.44,160.17,160.16,3.54]
[1752360502211,9.6812,160.17,160.16,3.54]
[1752360502808,3.44,160.17,160.16,3.54]
[1752360504215,9.681,160.18,160.16,3.54]
[1752360506611,3.44,160.17,160.16,3.54]